bitfinex/quotes_SOLUSD_20260213
["timestamp","ask_amount","ask_price","bid_price","bid_amount"]
[1770948420281,12.68423856,78.838,78.801,0.53845284]
[1770948420475,3.96529308,78.83,78.801,0.53845284]
[1770948420698,3.96529308,78.83,78.768,50.66]
[1770948420699,3.96529308,78.82,78.791,0.53845284]
[1770948420880,16.65244738,78.82,78.777,0.53845284]
[1770948421082,3.96529308,78.8,78.772,0.53845284]
[1770948421376,3.96529308,78.8,78.771,12.69502735]
[1770948421576,3.96529308,78.79,78.75,4.16529308]
[1770948421782,3.96529308,78.78,78.752,0.53845284]
[1770948422164,3.96529308,78.8,78.761,0.53845284]
[1770948422477,3.96529308,78.81,78.771,0.53845284]
[1770948422867,3.96529308,78.81,78.773,0.53845284]
[1770948423079,12.68824433,78.814,78.773,0.53845284]
[1770948423278,12.68824433,78.814,78.78,3.96529308]
[1770948423579,3.96529308,78.82,78.781,0.53845284]
[1770948424473,3.96529308,78.82,78.783,0.53845284]
[1770948427158,3.96529308,78.82,78.771,50.62]
[1770948427159,3.96529308,78.81,78.773,12.69470503]
[1770948427361,3.96529308,78.8,78.771,50.62]
[1770948428469,3.96529308,78.79,78.766,12.69580255]
[1770948428673,3.96529308,78.78,78.75,0.73845284]
[1770948429273,16.65888775,78.78,78.75,0.73845284]
[1770948429590,40.96,78.811,78.75,0.73845284]
[1770948429591,50.7210417,78.863,78.771,0.53845284]
[1770948429791,3.96529308,78.85,78.801,0.53845284]
[1770948429990,3.96529308,78.85,78.811,0.53845284]
[1770948430772,3.96529308,78.86,78.821,0.53845284]
[1770948430977,3.96234502,78.86,78.821,0.53845284]
[1770948431593,3.96234502,78.86,78.823,0.53845284]
[1770948432591,3.96234502,78.86,78.822,12.68681332]
[1770948432592,3.96234502,78.86,78.825,0.53845284]
[1770948435389,3.96234502,78.86,78.827,0.53845284]
[1770948435602,12.67976876,78.866,78.831,0.53845284]
[1770948436276,3.96234502,78.86,78.831,0.53845284]
[1770948437892,44.88234502,78.87,78.833,0.53845284]
[1770948438276,12.67925293,78.869,78.833,0.53845284]
[1770948438488,12.6776455,78.879,78.841,0.53845284]
[1770948438676,0.1,78.88,78.851,0.53845284]
[1770948438992,0.1,78.88,78.861,0.53845284]
[1770948440074,0.1,78.88,78.863,0.53845284]
[1770948440491,0.1,78.88,78.858,12.68099352]
[1770948440681,0.1,78.88,78.858,13.21944636]
[1770948441395,0.1,78.9,78.87,3.96234502]
[1770948441600,4.06234502,78.9,78.86,3.96234502]
[1770948442184,4.06234502,78.9,78.861,44.38188711]
[1770948442492,4.06234502,78.9,78.862,0.53845284]
[1770948442978,4.06234502,78.9,78.861,44.38188711]
[1770948442979,3.96234502,78.89,78.861,12.68053917]
[1770948443176,12.67443186,78.899,78.862,0.53845284]
[1770948443381,0.1,78.9,78.862,0.53845284]
[1770948443694,0.1,78.9,78.871,0.53845284]
[1770948444070,0.1,78.9,78.873,0.53845284]
[1770948444403,4.06234502,78.9,78.873,0.53845284]
[1770948444694,4.06234502,78.9,78.867,12.6794431]
[1770948444881,4.06234502,78.9,78.868,0.53845284]
[1770948448685,3.96234502,78.89,78.862,0.53845284]
[1770948449007,12.67443186,78.899,78.821,0.53845284]
[1770948449008,3.96234502,78.87,78.821,0.53845284]
[1770948449184,3.96234502,78.85,78.821,0.53845284]
[1770948449880,3.96234502,78.84,78.811,0.53845284]
[1770948451002,12.68407767,78.839,78.802,0.53845284]
[1770948451702,23.3020492,78.85,78.811,0.53845284]
[1770948454402,23.3020492,78.85,78.813,0.53845284]
[1770948455398,64.2420492,78.85,78.813,0.53845284]
[1770948456406,23.3020492,78.85,78.813,0.53845284]
[1770948456705,12.68262987,78.848,78.815,0.53845284]
[1770948463486,12.68262987,78.848,78.816,12.68777913]
[1770948463682,12.68262987,78.848,78.817,0.53845284]
[1770948465092,12.68199068,78.852,78.819,0.53845284]
[1770948465295,10.61964626,78.85,78.819,0.53845284]
[1770948467210,10.61964626,78.85,78.81,10.61964626]
[1770948467211,23.3020465,78.85,78.821,0.53845284]
[1770948468221,41.06,78.859,78.821,0.53845284]
[1770948468222,12.68177954,78.854,78.821,0.53845284]
[1770948472609,12.68102158,78.858,78.823,0.53845284]
[1770948473307,3.96306135,78.85,78.823,0.53845284]
[1770948474715,3.96306135,78.85,78.825,0.53845284]
[1770948474910,12.68246902,78.849,78.825,0.53845284]
[1770948477014,3.96306135,78.85,78.827,0.53845284]
[1770948479120,3.96306135,78.85,78.829,0.53845284]
[1770948480621,3.96306135,78.84,78.81,12.68867648]
[1770948480839,3.96306135,78.84,78.811,0.53845284]
[1770948481005,3.96306135,78.86,78.821,0.53845284]
[1770948481206,3.96306135,78.88,78.831,0.53845284]
[1770948481407,3.96306135,78.88,78.833,0.53845284]
[1770948481616,12.67782301,78.878,78.833,0.53845284]
[1770948482414,12.67782301,78.878,78.834,0.53845284]
[1770948482825,3.96306135,78.87,78.836,0.53845284]
[1770948486432,3.96306135,78.87,78.838,0.53845284]
[1770948488313,12.67796696,78.877,78.84,0.53845284]
[1770948488937,3.96306135,78.87,78.84,0.53845284]
[1770948489144,12.67796696,78.877,78.84,0.53845284]
[1770948490333,3.96306135,78.88,78.842,0.53845284]
[1770948490512,3.96306135,78.89,78.851,0.53845284]
[1770948490838,12.67459251,78.898,78.851,0.53845284]
[1770948492619,0.1,78.9,78.871,0.53845284]
[1770948494110,4.05771228,78.9,78.873,0.53845284]
[1770948496533,4.05771228,78.9,78.875,0.53845284]
[1770948500039,3.95771228,78.89,78.862,0.53845284]
[1770948500213,12.67443186,78.899,78.862,0.53845284]
[1770948501137,0.1,78.9,78.871,0.53845284]
[1770948502128,0.1,78.9,78.873,0.53845284]
[1770948503136,4.05771228,78.9,78.873,0.53845284]
[1770948504241,4.05771228,78.9,78.875,0.53845284]
[1770948504938,0.1,78.9,78.875,0.53845284]
[1770948506437,0.1,78.9,78.87,3.95771228]
[1770948506438,0.1,78.9,78.877,0.53845284]
[1770948506832,0.1,78.9,78.881,0.53845284]
[1770948508536,0.1,78.9,78.882,12.67716335]
[1770948508841,0.1,78.9,78.883,0.53845284]
[1770948509741,0.1,78.9,78.87,3.95771228]
[1770948509934,4.05771228,78.9,78.866,0.53845284]
[1770948510241,3.95771228,78.89,78.861,12.68045574]
[1770948510427,3.95771228,78.89,78.862,0.53845284]
[1770948510634,4.05771228,78.9,78.862,0.53845284]
[1770948511637,3.95771228,78.89,78.864,0.53845284]
[1770948512234,3.95771228,78.89,78.858,0.53845284]
[1770948512746,41.2,78.896,78.861,0.53845284]
[1770948514654,41.2,78.896,78.851,44.38751569]
[1770948514655,0.1,78.9,78.871,0.53845284]
[1770948515938,0.1,78.9,78.881,0.53845284]
[1770948516748,0.1,78.9,78.883,0.53845284]
[1770948517855,0.1,78.9,78.885,0.53845284]
[1770948519343,4.05771228,78.9,78.854,0.53845284]
[1770948519662,3.95771228,78.89,78.854,0.53845284]
[1770948519967,3.95771228,78.89,78.844,50.34]
[1770948519968,12.67443186,78.899,78.861,0.53845284]
[1770948520336,3.95771228,78.89,78.861,0.53845284]
[1770948521462,12.67443186,78.899,78.861,0.53845284]
[1770948521953,12.67443186,78.899,78.863,0.53845284]
[1770948523869,3.95771228,78.89,78.864,12.6800568]
[1770948524062,3.95771228,78.89,78.859,0.53845284]
[1770948524560,3.95771228,78.87,78.841,13.22220875]
[1770948524748,3.95771228,78.87,78.837,12.68434863]
[1770948525459,3.95771228,78.87,78.838,0.53845284]
[1770948526163,12.67925293,78.869,78.84,0.53845284]
[1770948526362,12.67814392,78.876,78.841,0.53845284]
[1770948527555,12.67814392,78.876,78.843,0.53845284]
[1770948528955,3.95771228,78.87,78.837,0.53845284]
[1770948529156,3.95771228,78.86,78.831,13.22381773]
[1770948529364,3.95771228,78.86,78.832,0.53845284]
[1770948530168,3.95771228,78.85,78.826,0.53845284]
[1770948530850,3.95771228,78.85,78.821,12.68697428]
[1770948531453,3.95771228,78.84,78.803,12.68987221]
[1770948531653,3.95771228,78.84,78.804,0.53845284]
[1770948532353,3.95771228,78.84,78.769,4.61729252]
[1770948532354,3.95771228,78.83,78.797,13.22923733]
[1770948532666,3.95771228,78.84,78.801,0.53845284]
[1770948532874,41.22,78.839,78.801,0.53845284]
[1770948533345,12.68423856,78.838,78.803,0.53845284]
[1770948535972,41.22,78.839,78.805,0.53845284]
[1770948536172,53.90417145,78.839,78.805,0.53845284]
[1770948536375,12.68417145,78.839,78.805,0.53845284]
[1770948536752,3.95771228,78.85,78.805,0.53845284]
[1770948537065,3.95771228,78.85,78.811,0.53845284]
[1770948537270,3.95771228,78.84,78.811,0.53845284]
[1770948538077,3.95771228,78.84,78.813,0.53845284]
[1770948538279,12.68246902,78.849,78.813,0.53845284]
[1770948539359,3.95771228,78.83,78.805,0.53845284]
[1770948540173,16.64166151,78.84,78.807,0.53845284]
[1770948540380,16.64166151,78.84,78.806,12.68938913]
[1770948540381,12.6828856,78.847,78.811,0.53845284]
[1770948540560,3.95771228,78.84,78.811,0.53845284]
[1770948542383,3.95771228,78.84,78.812,12.68842308]
[1770948543961,3.95771228,78.84,78.813,0.53845284]
[1770948544361,12.68289242,78.847,78.806,31.72347283]
[1770948544362,41.28,78.847,78.815,0.53845284]
[1770948545765,3.95771228,78.85,78.815,0.53845284]
[1770948545960,3.95771228,78.84,78.814,12.68810109]
[1770948550670,3.95771228,78.84,78.815,0.53845284]
[1770948550868,12.68265478,78.848,78.815,0.53845284]
[1770948551068,3.95771228,78.84,78.815,0.53845284]
[1770948551983,3.95771228,78.84,78.816,12.68777913]
[1770948552163,3.95771228,78.84,78.817,0.53845284]
[1770948552884,3.96455968,78.84,78.817,0.53845284]
[1770948553086,3.96455968,78.84,78.816,12.68777913]
[1770948553382,3.96455968,78.84,78.816,13.22623197]
[1770948553982,3.96455968,78.84,78.816,0.53845284]
[1770948554490,3.96455968,78.84,78.817,12.68761815]
[1770948555990,3.96455968,78.84,78.817,13.22607099]
[1770948556787,41.38,78.846,78.818,0.53845284]
[1770948556978,54.06298494,78.846,78.818,0.53845284]
[1770948557369,3.96455968,78.84,78.813,12.68816739]
[1770948557888,3.96455968,78.84,78.814,0.53845284]
[1770948558186,3.96455968,78.84,78.815,12.68794011]
[1770948560295,3.96455968,78.84,78.815,0.53845284]
[1770948560475,3.96455968,78.83,78.802,0.53845284]
[1770948561187,3.96455968,78.84,78.802,0.53845284]
[1770948562187,12.68407767,78.839,78.804,0.53845284]
[1770948564899,12.68407767,78.839,78.806,0.53845284]
[1770948567881,12.68407767,78.839,78.807,12.68922811]
[1770948568079,12.68407767,78.839,78.808,0.53845284]
[1770948570008,12.68407767,78.839,78.809,12.68890608]
[1770948570187,12.68407767,78.839,78.81,0.53845284]
[1770948572410,12.68439945,78.837,78.81,0.53845284]
[1770948572608,41.52,78.836,78.81,0.53845284]
[1770948573192,12.68439945,78.837,78.81,0.53845284]
[1770948573497,41.54,78.836,78.81,0.53845284]
[1770948573695,12.68387675,78.841,78.812,0.53845284]
[1770948575599,12.68387675,78.841,78.814,0.53845284]
[1770948575908,41.56,78.84,78.814,0.53845284]
[1770948576208,12.68387675,78.841,78.814,0.53845284]
[1770948576508,12.68182567,78.853,78.814,0.53845284]
[1770948576715,41.56,78.843,78.814,0.53845284]
[1770948578004,41.56,78.843,78.816,0.53845284]
[1770948578209,41.58,78.843,78.816,0.53845284]
[1770948578905,3.96455968,78.84,78.816,0.53845284]
[1770948581115,41.58,78.843,78.818,0.53845284]
[1770948581299,41.62,78.844,78.818,0.53845284]
[1770948583598,31.70120322,78.862,78.817,12.68761815]
[1770948583599,12.681438,78.856,78.82,0.53845284]
[1770948583802,41.66,78.857,78.821,0.53845284]
[1770948584790,16.64539066,78.86,78.821,0.53845284]
[1770948584990,3.96455968,78.85,78.821,0.53845284]
[1770948586200,3.96455968,78.85,78.822,12.68681332]
[1770948586419,3.96455968,78.86,78.823,0.53845284]
[1770948586591,50.68271297,78.923,78.831,0.53845284]
[1770948586592,41.66,78.878,78.831,0.53845284]
[1770948586902,41.66,78.878,78.841,0.53845284]
[1770948588802,3.96455968,78.87,78.843,0.53845284]
[1770948589715,41.66,78.878,78.843,0.53845284]
[1770948591619,12.67796696,78.877,78.845,0.53845284]
[1770948593334,3.96455968,78.87,78.845,0.53845284]
[1770948593623,3.96455968,78.87,78.847,0.53845284]
[1770948594223,12.67796696,78.877,78.847,0.53845284]
[1770948596916,3.96455968,78.87,78.847,0.53845284]
[1770948597508,3.96455968,78.87,78.846,12.68295157]
[1770948597826,45.68455968,78.87,78.847,0.53845284]
[1770948598519,41.72,78.869,78.848,12.68262987]
[1770948599036,41.72,78.869,78.849,0.53845284]
[1770948599412,3.96455968,78.89,78.849,0.53845284]
[1770948599613,41.72,78.889,78.849,0.53845284]
[1770948601739,3.96455968,78.88,78.851,0.53845284]
[1770948601915,3.96455968,78.87,78.836,13.22301319]
[1770948602118,3.96455968,78.88,78.837,0.53845284]
[1770948604115,12.67619916,78.888,78.841,0.53845284]
[1770948604933,3.96455968,78.88,78.841,0.53845284]
[1770948606115,12.67619916,78.888,78.841,0.53845284]
[1770948606315,12.67619916,78.888,78.843,0.53845284]
[1770948607934,41.76,78.887,78.843,0.53845284]
[1770948614946,12.67652054,78.886,78.845,0.53845284]
[1770948616923,3.95975546,78.88,78.845,0.53845284]
[1770948617249,3.95975546,78.87,78.846,12.68295157]
[1770948617424,12.6776455,78.879,78.847,0.53845284]
[1770948621040,12.6776455,78.879,78.849,0.53845284]
[1770948623842,41.82,78.878,78.849,0.53845284]
[1770948624042,41.82,78.878,78.85,12.68230818]
[1770948624233,41.82,78.878,78.851,0.53845284]
[1770948626449,3.95975546,78.87,78.851,0.53845284]
[1770948627145,12.67796696,78.877,78.851,0.53845284]
[1770948628257,12.67796696,78.877,78.845,0.53845284]
[1770948631131,3.95975546,78.87,78.841,0.53845284]
[1770948631453,3.95975546,78.87,78.84,12.68385061]
[1770948631641,3.95975546,78.86,78.821,13.22542712]
[1770948631830,41.9,78.859,78.822,0.53845284]
[1770948632840,12.68102158,78.858,78.823,12.68665237]
[1770948633042,12.68102158,78.858,78.824,0.53845284]
[1770948634633,3.95975546,78.87,78.831,0.53845284]
[1770948634839,3.95975546,78.87,78.834,0.53845284]
[1770948636434,41.92,78.874,78.841,0.53845284]
[1770948637855,4.61729252,78.894,78.84,3.95975546]
[1770948637856,3.95975546,78.89,78.851,0.53845284]
[1770948638159,3.95975546,78.88,78.851,0.53845284]
[1770948639038,3.95975546,78.88,78.848,12.68252534]
[1770948639457,3.95975546,78.87,78.845,0.53845284]
[1770948639940,3.95975546,78.87,78.842,50.06]
[1770948640340,3.95975546,78.86,78.842,50.06]
[1770948640661,3.95975546,78.86,78.833,12.68501828]
[1770948641234,3.95975546,78.85,78.825,0.53845284]
[1770948641861,3.95975546,78.85,78.823,12.68665237]
[1770948642360,3.95975546,78.85,78.823,13.22510521]
[1770948644755,3.95975546,78.85,78.824,0.53845284]
[1770948646138,3.95975546,78.84,78.824,0.53845284]
[1770948646659,3.95975546,78.85,78.824,0.53845284]
[1770948647754,3.95975546,78.85,78.826,0.53845284]
[1770948647946,41.96,78.858,78.826,0.53845284]
[1770948648257,3.95975546,78.85,78.826,0.53845284]
[1770948649846,3.95975546,78.86,78.828,0.53845284]
[1770948652141,3.95975546,78.86,78.83,0.53845284]
[1770948654264,3.95975546,78.86,78.831,12.68536489]
[1770948654468,3.95975546,78.86,78.832,0.53845284]
[1770948655658,3.95975546,78.86,78.834,0.53845284]
[1770948657166,3.95975546,78.86,78.828,0.53845284]
[1770948658345,3.95975546,78.86,78.83,0.53845284]
[1770948661070,3.95975546,78.85,78.83,0.53845284]
[1770948661452,3.95975546,78.85,78.812,0.53845284]
[1770948662368,12.68086077,78.859,78.812,0.53845284]
[1770948662556,12.68086077,78.859,78.821,0.53845284]
[1770948663264,12.68086077,78.859,78.822,12.68681332]
[1770948663467,12.68086077,78.859,78.823,0.53845284]
[1770948664467,12.68086077,78.859,78.825,0.53845284]
[1770948670970,3.95975546,78.86,78.825,0.53845284]
[1770948671179,42.08,78.862,78.827,0.53845284]
[1770948671369,12.6794446,78.868,78.827,0.53845284]
[1770948671554,42.08,78.867,78.827,0.53845284]
[1770948672073,3.95975546,78.86,78.827,0.53845284]
[1770948675781,3.95975546,78.86,78.828,12.68584766]
[1770948675982,3.95975546,78.86,78.829,0.53845284]
[1770948676786,3.95975546,78.85,78.829,0.53845284]
[1770948676979,3.96317273,78.85,78.829,0.53845284]
[1770948679079,4.61729252,78.874,78.79,101.73546226]
[1770948679080,3.96317273,78.84,78.804,0.53845284]
[1770948679270,3.96317273,78.83,78.804,0.53845284]
[1770948682685,3.96317273,78.82,78.804,0.53845284]
[1770948682867,3.96317273,78.83,78.804,0.53845284]
[1770948684477,3.96317273,78.84,78.806,0.53845284]
[1770948686400,12.68301383,78.846,78.811,0.53845284]
[1770948686580,12.68301383,78.846,78.813,0.53845284]
[1770948687994,3.96317273,78.84,78.813,0.53845284]
[1770948689595,3.96317273,78.84,78.815,0.53845284]
[1770948692903,3.96317273,78.84,78.817,0.53845284]
[1770948693193,3.96317273,78.85,78.817,0.53845284]
[1770948694473,12.6813432,78.856,78.817,0.53845284]
[1770948694692,3.96317273,78.85,78.817,0.53845284]
[1770948694898,3.96317273,78.85,78.818,12.68745717]
[1770948695104,3.96317273,78.85,78.819,0.53845284]
[1770948696809,12.68246902,78.849,78.819,0.53845284]
[1770948697005,12.68246902,78.849,78.82,13.22558808]
[1770948697197,12.68246902,78.849,78.821,0.53845284]
[1770948697504,3.96317273,78.84,78.821,0.53845284]
[1770948697905,3.96317273,78.84,78.82,12.68713524]
[1770948698114,3.96317273,78.84,78.821,0.53845284]
[1770948699301,3.96317273,78.84,78.823,0.53845284]
[1770948700184,3.96317273,78.85,78.825,0.53845284]
[1770948700389,12.68194617,78.853,78.825,0.53845284]
[1770948701618,3.96317273,78.86,78.827,0.53845284]
[1770948702695,31.71635526,79.023,78.831,0.53845284]
[1770948702696,12.67895609,78.871,78.831,0.53845284]
[1770948702914,3.96317273,78.87,78.831,0.53845284]
[1770948704911,3.96317273,78.87,78.832,12.68520397]
[1770948705115,3.96317273,78.87,78.833,0.53845284]
[1770948705819,12.67925293,78.869,78.833,0.53845284]
[1770948705998,3.96317273,78.86,78.833,0.53845284]
[1770948706919,12.67925293,78.869,78.833,0.53845284]
[1770948707822,3.96317273,78.86,78.835,0.53845284]
[1770948711216,3.96317273,78.86,78.826,81.69542384]
[1770948711217,3.96317273,78.86,78.837,0.53845284]
[1770948713129,3.96317273,78.86,78.838,12.68423856]
[1770948713436,3.96317273,78.86,78.839,0.53845284]
[1770948715815,3.96317273,78.87,78.841,0.53845284]
[1770948717408,3.96317273,78.88,78.841,0.53845284]
[1770948717832,3.96317273,78.88,78.843,0.53845284]
[1770948718731,16.64071685,78.88,78.843,0.53845284]
[1770948720945,16.64071685,78.88,78.842,44.39258262]
[1770948720946,16.64071685,78.88,78.845,0.53845284]
[1770948721833,3.96317273,78.86,78.84,12.68389532]
[1770948722141,3.96317273,78.86,78.838,50.63845284]
[1770948722314,3.96317273,78.86,78.838,50.1]
[1770948722636,3.96317273,78.86,78.833,0.53845284]
[1770948723331,16.64389932,78.86,78.833,0.53845284]
[1770948724109,16.64389932,78.86,78.834,12.68488215]
[1770948724314,16.64389932,78.86,78.835,0.53845284]
[1770948725133,16.64389932,78.86,78.779,88.93494146]
[1770948725134,3.96317273,78.84,78.817,0.53845284]
[1770948725438,12.68407767,78.839,78.817,0.53845284]
[1770948725946,3.96317273,78.83,78.801,0.53845284]
[1770948727535,16.64873519,78.83,78.802,0.53845284]
[1770948727842,16.64873519,78.83,78.793,0.53845284]
[1770948727843,3.96317273,78.81,78.793,0.53845284]
[1770948728737,3.96317273,78.82,78.793,0.53845284]
[1770948729437,3.96317273,78.83,78.793,0.53845284]
[1770948729640,3.96317273,78.84,78.801,0.53845284]
[1770948730228,3.96317273,78.84,78.803,0.53845284]
[1770948731041,3.96317273,78.83,78.803,0.53845284]
[1770948731433,3.96317273,78.82,78.803,0.53845284]
[1770948731739,3.96317273,78.83,78.804,0.53845284]
[1770948733945,3.96317273,78.83,78.805,12.68955015]
[1770948734131,3.96317273,78.83,78.806,0.53845284]
[1770948736130,3.96317273,78.83,78.808,0.53845284]
[1770948736331,3.96317273,78.85,78.811,0.53845284]
[1770948736652,3.96317273,78.85,78.813,0.53845284]
[1770948736861,3.96331423,78.85,78.813,0.53845284]
[1770948737849,12.67909217,78.87,78.821,0.53845284]
[1770948737850,3.96331423,78.86,78.821,0.53845284]
[1770948738235,3.96331423,78.86,78.823,0.53845284]
[1770948740241,12.68086077,78.859,78.825,0.53845284]
[1770948742359,3.96331423,78.85,78.827,0.53845284]
[1770948742951,3.96331423,78.86,78.827,0.53845284]
[1770948744762,12.68086077,78.859,78.829,0.53845284]
[1770948744958,3.96331423,78.86,78.829,0.53845284]
[1770948747759,12.68086077,78.859,78.823,0.53845284]
[1770948747968,3.96331423,78.85,78.823,0.53845284]
[1770948749557,3.96331423,78.86,78.823,0.53845284]
[1770948749751,3.96331423,78.86,78.822,44.40384663]
[1770948749752,16.64416336,78.86,78.825,0.53845284]
[1770948752272,3.96331423,78.86,78.827,0.53845284]
[1770948754371,16.6424064,78.87,78.828,12.68584766]
[1770948754580,16.6424064,78.87,78.829,0.53845284]
[1770948758170,3.96331423,78.86,78.831,0.53845284]
[1770948762868,3.96331423,78.86,78.833,0.53845284]
[1770948766663,3.96331423,78.86,78.835,0.53845284]
[1770948770277,3.96331423,78.86,78.837,0.53845284]
[1770948771682,3.96331423,78.86,78.839,0.53845284]
[1770948772480,42.08,78.873,78.826,50.48]
[1770948772481,3.96331423,78.85,78.828,0.53845284]
[1770948773777,3.96331423,78.86,78.83,0.53845284]
[1770948774480,3.96331423,78.87,78.831,0.53845284]
[1770948775680,3.96331423,78.86,78.831,0.53845284]
[1770948775880,3.96331423,78.86,78.833,0.53845284]
[1770948778376,3.96331423,78.86,78.835,0.53845284]
[1770948781582,3.96331423,78.86,78.837,0.53845284]
[1770948783078,3.96331423,78.86,78.83,0.53845284]
[1770948783276,3.96331423,78.85,78.825,0.53845284]
[1770948783676,3.96331423,78.86,78.825,0.53845284]
[1770948785897,3.96331423,78.86,78.827,0.53845284]
[1770948786270,3.96331423,78.84,78.819,50.52]
[1770948786472,3.96331423,78.84,78.821,0.53845284]
[1770948790203,3.96331423,78.83,78.819,50.52]
[1770948790497,3.96331423,78.83,78.806,0.53845284]
[1770948790674,3.96331423,78.82,78.806,0.53845284]
[1770948791388,3.96331423,78.82,78.81,12.68866315]
[1770948791875,3.96331423,78.82,78.802,50.7]
[1770948792074,3.96331423,78.82,78.803,12.68987221]
[1770948792694,3.96331423,78.82,78.803,13.22832505]
[1770948796395,3.96331423,78.82,78.804,0.53845284]
[1770948796600,3.96331423,78.82,78.806,0.53845284]
[1770948798903,3.96551871,78.82,78.806,0.53845284]
[1770948800592,3.96551871,78.82,78.801,0.53845284]
[1770948800789,3.96551871,78.82,78.794,0.53845284]
[1770948800993,3.96551871,78.81,78.794,0.53845284]
[1770948804114,3.96551871,78.81,78.795,0.53845284]
[1770948806107,3.96551871,78.82,78.797,0.53845284]
[1770948808313,3.96551871,78.81,78.797,0.53845284]
[1770948811095,3.96551871,78.82,78.798,0.53845284]
[1770948813619,3.96551871,78.82,78.8,0.53845284]
[1770948819816,3.96551871,78.82,78.802,0.53845284]
[1770948823620,3.96551871,78.82,78.804,0.53845284]
[1770948827636,12.68383068,78.841,78.806,0.53845284]
[1770948827836,3.96551871,78.83,78.806,0.53845284]
[1770948828934,3.96551871,78.83,78.808,0.53845284]
[1770948833521,3.96551871,78.82,78.808,0.53845284]
[1770948833723,3.96551871,78.82,78.81,0.53845284]
[1770948834241,3.96551871,78.83,78.81,0.53845284]
[1770948836937,3.96551871,78.83,78.812,0.53845284]
[1770948839350,3.96551871,78.83,78.814,0.53845284]
[1770948841425,3.96551871,78.83,78.803,31.72440692]
[1770948841426,3.96551871,78.82,78.799,12.69037233]
[1770948841642,3.96551871,78.81,78.799,12.69037233]
[1770948842034,3.96551871,78.82,78.799,12.69037233]
[1770948842435,3.96551871,78.81,78.794,51.02]
[1770948842635,3.96551871,78.81,78.79,0.2]
[1770948842973,3.96551871,78.8,78.79,0.2]
[1770948846444,3.96551871,78.8,78.765,51.04]
[1770948846759,3.96551871,78.78,78.769,0.53845284]
[1770948848536,3.96551871,78.78,78.769,13.23373717]
[1770948849734,3.96551871,78.78,78.769,0.53845284]
[1770948850031,3.96551871,78.78,78.765,13.23439132]
[1770948850351,3.96551871,78.78,78.766,0.53845284]
[1770948854152,3.96551871,78.79,78.768,0.53845284]
[1770948854356,3.96551871,78.78,78.768,0.53845284]
[1770948858245,3.96551871,78.78,78.763,0.53845284]
[1770948859568,3.96551871,78.78,78.764,12.6961556]
[1770948860452,3.96551871,78.77,78.761,12.69663919]
[1770948860648,3.96551871,78.77,78.76,0.2]
[1770948860961,3.97090991,78.77,78.76,0.2]
[1770948864065,12.69534969,78.769,78.75,0.2]
[1770948864246,3.97090991,78.76,78.75,0.2]
[1770948865861,3.97090991,78.76,78.751,0.53845284]
[1770948866044,3.97090991,78.76,78.752,0.53845284]
[1770948866561,3.97090991,78.76,78.75,0.2]
[1770948866562,3.97090991,78.77,78.754,0.53845284]
[1770948869863,3.97090991,78.77,78.756,0.53845284]
[1770948871751,3.97090991,78.78,78.758,0.48295561]
[1770948872151,0.47603621,78.769,78.753,13.18078111]
[1770948872468,3.97090991,78.76,78.753,13.18078111]
[1770948872672,0.47603621,78.765,78.753,13.18078111]
[1770948873868,0.47603621,78.765,78.753,12.6978255]
[1770948874853,3.97090991,78.76,78.753,13.16579363]
[1770948875376,3.97090991,78.76,78.753,12.6978255]
[1770948875751,0.47603621,78.765,78.753,12.6978255]
[1770948876457,0.50684152,78.759,78.75,0.2]
[1770948876773,0.50684152,78.759,78.749,12.69856144]
[1770948877153,0.50684152,78.759,78.743,13.16740682]
[1770948878858,0.50684152,78.759,78.744,0.46796813]
[1770948883058,0.50684152,78.759,78.743,12.69943869]
[1770948884962,0.50684152,78.759,78.743,13.16740682]
[1770948890280,0.50684152,78.759,78.744,0.46796813]
[1770948893095,0.50684152,78.759,78.746,0.46796813]
[1770948893882,0.50684152,78.764,78.746,0.46796813]
[1770948894092,0.50684152,78.759,78.746,0.46796813]
[1770948897070,0.50684152,78.759,78.74,0.2]
[1770948897268,4.61729252,78.783,78.74,0.2]
[1770948897269,0.50684152,78.782,78.751,0.46796813]
[1770948897569,6.63326365,78.83,78.771,0.46796813]
[1770948897773,6.63326365,78.83,78.801,0.46796813]
[1770948897962,0.1,78.84,78.811,0.46796813]
[1770948898164,12.68407767,78.839,78.811,0.46796813]
[1770948898369,12.68407767,78.839,78.798,51.46]
[1770948898370,3.97090991,78.83,78.799,0.46796813]
[1770948898887,12.68407767,78.839,78.801,0.46796813]
[1770948899080,3.97090991,78.83,78.801,0.46796813]
[1770948899484,0.28132537,78.829,78.801,0.46796813]
[1770948900187,0.28132537,78.829,78.785,31.73159528]
[1770948900188,0.28114628,78.838,78.75,0.46796813]
[1770948900417,0.28096925,78.789,78.761,0.46796813]
[1770948900879,0.28096925,78.779,78.751,0.49573796]
[1770948903595,0.28096925,78.779,78.753,0.49573796]
[1770948903893,0.28045027,78.799,78.761,0.49573796]
[1770948904077,0.28045027,78.789,78.761,0.49573796]
[1770948905893,0.28011414,78.794,78.763,0.49573796]